[Event "Early-Titled-Tuesday-Blitz-February-27-2024"]
[Site "Chess.com"]
[Date "2024.02.27"]
[Round "9"]
[White "newauto"]
[Black "pfalcon1949"]
[Result "1/2-1/2"]
[WhiteElo "2208"]
[BlackElo "1904"]
[TimeControl "180+1"]
[EndTime "9:45:13 PST"]
[Termination "Game drawn by repetition"]

1. d4 {[%clk 0:03:00.9]} 1... Nf6 {[%clk 0:02:59.1]} 2. Nf3 {[%clk 0:03:01.2]}
2... d5 {[%clk 0:02:58]} 3. Bg5 {[%clk 0:03:01.5]} 3... c5 {[%clk 0:02:57]} 4.
e3 {[%clk 0:03:01.4]} 4... Nc6 {[%clk 0:02:55]} 5. Nbd2 {[%clk 0:02:59.3]} 5...
Qb6 {[%clk 0:02:53.3]} 6. dxc5 {[%clk 0:02:52.1]} 6... Qxc5 {[%clk 0:02:51.3]}
7. c3 {[%clk 0:02:48.9]} 7... e5 {[%clk 0:02:49.5]} 8. Nb3 {[%clk 0:02:46]} 8...
Qd6 {[%clk 0:02:47.6]} 9. Be2 {[%clk 0:02:42.8]} 9... Be6 {[%clk 0:02:45.8]} 10.
O-O {[%clk 0:02:39.9]} 10... Be7 {[%clk 0:02:45.9]} 11. Re1 {[%clk 0:02:35]}
11... O-O {[%clk 0:02:45.2]} 12. Qc2 {[%clk 0:02:31.4]} 12... Rac8 {[%clk
0:02:42.9]} 13. Rad1 {[%clk 0:02:31.3]} 13... Rfd8 {[%clk 0:02:39.3]} 14. Qb1
{[%clk 0:02:31]} 14... h6 {[%clk 0:02:37.4]} 15. Bh4 {[%clk 0:02:30.5]} 15... g5
{[%clk 0:02:31]} 16. Bg3 {[%clk 0:02:30.2]} 16... Ne4 {[%clk 0:02:31.2]} 17. Bf1
{[%clk 0:02:22.3]} 17... Nxg3 {[%clk 0:02:30.7]} 18. hxg3 {[%clk 0:02:22.4]}
18... e4 {[%clk 0:02:23.1]} 19. Nfd4 {[%clk 0:02:20]} 19... Nxd4 {[%clk
0:02:22.7]} 20. Nxd4 {[%clk 0:02:13]} 20... Qe5 {[%clk 0:02:19.8]} 21. Be2
{[%clk 0:01:47.8]} 21... Bf6 {[%clk 0:02:07.4]} 22. Rc1 {[%clk 0:01:46.3]} 22...
Bg7 {[%clk 0:02:05.5]} 23. Qc2 {[%clk 0:01:31.6]} 23... Bd7 {[%clk 0:01:58.7]}
24. Qb3 {[%clk 0:01:30.5]} 24... Bc6 {[%clk 0:01:55]} 25. c4 {[%clk 0:01:26.4]}
25... f5 {[%clk 0:01:42.7]} 26. Nxc6 {[%clk 0:01:22.6]} 26... bxc6 {[%clk
0:01:41.9]} 27. cxd5 {[%clk 0:01:21]} 27... cxd5 {[%clk 0:01:41.9]} 28. Rxc8
{[%clk 0:01:20.4]} 28... Rxc8 {[%clk 0:01:42]} 29. Rd1 {[%clk 0:01:20.4]} 29...
Rd8 {[%clk 0:01:38.2]} 30. Rxd5 {[%clk 0:01:19.3]} 30... Rxd5 {[%clk 0:01:36.9]}
31. Bc4 {[%clk 0:01:19.2]} 31... Qxb2 {[%clk 0:01:32]} 32. Bxd5+ {[%clk
0:01:19.2]} 32... Kh7 {[%clk 0:01:32.1]} 33. Bg8+ {[%clk 0:01:16.3]} 33... Kh8
{[%clk 0:01:29.6]} 34. Qxb2 {[%clk 0:01:14]} 34... Bxb2 {[%clk 0:01:28]} 35. Be6
{[%clk 0:01:14.9]} 35... f4 {[%clk 0:01:22.6]} 36. gxf4 {[%clk 0:01:15]} 36...
gxf4 {[%clk 0:01:22.1]} 37. exf4 {[%clk 0:01:15.9]} 37... Bc1 {[%clk 0:01:20.1]}
38. g3 {[%clk 0:01:15]} 38... e3 {[%clk 0:01:16.1]} 39. fxe3 {[%clk 0:00:51.7]}
39... Bxe3+ {[%clk 0:01:14.3]} 40. Kg2 {[%clk 0:00:52.6]} 40... Kg7 {[%clk
0:01:13.4]} 41. Kf3 {[%clk 0:00:53.1]} 41... Bb6 {[%clk 0:01:12.1]} 42. Bd5
{[%clk 0:00:48.3]} 42... Kf6 {[%clk 0:01:11.8]} 43. Kg4 {[%clk 0:00:48.6]} 43...
Bc5 {[%clk 0:01:08.7]} 44. a4 {[%clk 0:00:46.7]} 44... Kg6 {[%clk 0:01:07.8]}
45. Be4+ {[%clk 0:00:44.4]} 45... Kf6 {[%clk 0:01:08.1]} 46. Kh5 {[%clk
0:00:44.4]} 46... Bf2 {[%clk 0:01:04.3]} 47. g4 {[%clk 0:00:43.3]} 47... Be3
{[%clk 0:01:04.2]} 48. f5 {[%clk 0:00:28.2]} 48... Bg5 {[%clk 0:00:57.4]} 49. a5
{[%clk 0:00:24.1]} 49... Bf4 {[%clk 0:00:50.9]} 50. a6 {[%clk 0:00:23.4]} 50...
Bg5 {[%clk 0:00:51.3]} 51. Bf3 {[%clk 0:00:22.8]} 51... Bf4 {[%clk 0:00:48.6]}
52. Kh4 {[%clk 0:00:23.1]} 52... Bg5+ {[%clk 0:00:48]} 53. Kg3 {[%clk
0:00:23.2]} 53... Ke5 {[%clk 0:00:48.1]} 54. Kf2 {[%clk 0:00:23]} 54... Kd4
{[%clk 0:00:47.8]} 55. Ke2 {[%clk 0:00:23]} 55... Bf6 {[%clk 0:00:46.6]} 56. Bg2
{[%clk 0:00:22.9]} 56... Bg5 {[%clk 0:00:46.5]} 57. Kf3 {[%clk 0:00:22.9]} 57...
Bf6 {[%clk 0:00:47]} 58. Kf4 {[%clk 0:00:23.2]} 58... Bg5+ {[%clk 0:00:46.6]}
59. Kf3 {[%clk 0:00:23.5]} 59... Bf6 {[%clk 0:00:47]} 60. Bf1 {[%clk 0:00:23.8]}
60... Bg5 {[%clk 0:00:47.1]} 61. Be2 {[%clk 0:00:19.7]} 61... Bf6 {[%clk
0:00:47.2]} 62. Bd1 {[%clk 0:00:18.5]} 62... Bg5 {[%clk 0:00:47.1]} 63. Bc2
{[%clk 0:00:18.4]} 63... Bf6 {[%clk 0:00:47.8]} 64. Kf4 {[%clk 0:00:18.6]} 64...
Bg5+ {[%clk 0:00:47.3]} 65. Kf3 {[%clk 0:00:19]} 65... Bf6 {[%clk 0:00:47.8]}
66. Kg3 {[%clk 0:00:19]} 66... Bg5 {[%clk 0:00:48.1]} 67. Kf3 {[%clk 0:00:19.2]}
1/2-1/2

[Event "Early-Titled-Tuesday-Blitz-February-27-2024"]
[Site "Chess.com"]
[Date "2024.02.27"]
[Round "9"]
[White "RobertoJBM"]
[Black "Rurep26"]
[Result "1/2-1/2"]
[WhiteElo "2847"]
[BlackElo "2715"]
[TimeControl "180+1"]
[EndTime "9:45:17 PST"]
[Termination "Game drawn by repetition"]

1. d4 {[%clk 0:03:00.9]} 1... e6 {[%clk 0:02:59.5]} 2. Nf3 {[%clk 0:03:00.3]}
2... Nf6 {[%clk 0:02:59.1]} 3. c4 {[%clk 0:02:59.9]} 3... b6 {[%clk 0:02:58.6]}
4. g3 {[%clk 0:02:59.7]} 4... Ba6 {[%clk 0:02:58.8]} 5. Qa4 {[%clk 0:02:59.7]}
5... Bb7 {[%clk 0:02:57.7]} 6. Bg2 {[%clk 0:02:59.2]} 6... c5 {[%clk 0:02:55.6]}
7. O-O {[%clk 0:02:58.9]} 7... cxd4 {[%clk 0:02:53.7]} 8. Nxd4 {[%clk
0:02:59.8]} 8... Bxg2 {[%clk 0:02:53.9]} 9. Kxg2 {[%clk 0:03:00.7]} 9... Be7
{[%clk 0:02:53.7]} 10. Rd1 {[%clk 0:03:00.6]} 10... O-O {[%clk 0:02:54.1]} 11.
Nc3 {[%clk 0:03:00.6]} 11... Qc7 {[%clk 0:02:53.9]} 12. Bg5 {[%clk 0:02:56.8]}
12... h6 {[%clk 0:02:52.4]} 13. Bxf6 {[%clk 0:02:53.8]} 13... Bxf6 {[%clk
0:02:52.5]} 14. Ne4 {[%clk 0:02:53.5]} 14... Qb7 {[%clk 0:02:49.4]} 15. f3
{[%clk 0:02:53.3]} 15... Be7 {[%clk 0:02:46.5]} 16. Nb5 {[%clk 0:02:52.5]} 16...
Qc6 {[%clk 0:02:30.1]} 17. Qb3 {[%clk 0:02:43.9]} 17... Na6 {[%clk 0:02:28.6]}
18. Qd3 {[%clk 0:02:37.9]} 18... Rfd8 {[%clk 0:02:22.8]} 19. Ned6 {[%clk
0:02:27.7]} 19... Nc5 {[%clk 0:02:21.8]} 20. Qd4 {[%clk 0:02:26.9]} 20... Bf6
{[%clk 0:02:12.3]} 21. Qd2 {[%clk 0:02:23.6]} 21... Na4 {[%clk 0:02:08.7]} 22.
Rab1 {[%clk 0:02:16]} 22... a6 {[%clk 0:02:07.6]} 23. Nc3 {[%clk 0:02:09.6]}
23... Bxc3 {[%clk 0:01:49.2]} 24. bxc3 {[%clk 0:02:10.5]} 24... b5 {[%clk
0:01:49.7]} 25. cxb5 {[%clk 0:02:00.4]} 25... axb5 {[%clk 0:01:50.6]} 26. Rdc1
{[%clk 0:01:48.4]} 26... Nb6 {[%clk 0:01:38.8]} 27. Nxb5 {[%clk 0:01:44.1]}
27... Nc4 {[%clk 0:01:38.4]} 28. Qd3 {[%clk 0:01:37.7]} 28... Rxa2 {[%clk
0:01:33.8]} 29. Nd4 {[%clk 0:01:33.8]} 29... Qa6 {[%clk 0:01:27.3]} 30. Rb4
{[%clk 0:01:24.3]} 30... d5 {[%clk 0:01:25.2]} 31. Nb3 {[%clk 0:01:18.5]} 31...
Qa3 {[%clk 0:01:17.4]} 32. Rxc4 {[%clk 0:01:08.3]} 32... dxc4 {[%clk 0:00:37.2]}
33. Qxd8+ {[%clk 0:01:05.1]} 33... Kh7 {[%clk 0:00:37.6]} 34. Rd1 {[%clk
0:00:47.2]} 34... Qxb3 {[%clk 0:00:31.3]} 35. Rd7 {[%clk 0:00:46.5]} 35... Rxe2+
{[%clk 0:00:29.1]} 36. Kh3 {[%clk 0:00:46.8]} 36... Qc2 {[%clk 0:00:09.4]} 37.
g4 {[%clk 0:00:32.7]} 37... Rxh2+ {[%clk 0:00:09.5]} 38. Kg3 {[%clk 0:00:33.2]}
38... Qf2+ {[%clk 0:00:08.3]} 39. Kf4 {[%clk 0:00:33.9]} 39... Qe1 {[%clk
0:00:05]} 40. Rxf7 {[%clk 0:00:27.2]} 40... Qc1+ {[%clk 0:00:03.9]} 41. Kg3
{[%clk 0:00:26.1]} 41... Qg1+ {[%clk 0:00:04]} 42. Kf4 {[%clk 0:00:26.5]} 42...
Re2 {[%clk 0:00:04.3]} 43. Rxg7+ {[%clk 0:00:25.5]} 43... Kxg7 {[%clk
0:00:04.2]} 44. Qe7+ {[%clk 0:00:25.9]} 44... Kg6 {[%clk 0:00:05.1]} 45. Qe8+
{[%clk 0:00:26.2]} 45... Kg7 {[%clk 0:00:06]} 46. Qe7+ {[%clk 0:00:26.6]} 46...
Kg8 {[%clk 0:00:06.4]} 47. Qe8+ {[%clk 0:00:26.1]} 47... Kg7 {[%clk 0:00:07]}
48. Qe7+ {[%clk 0:00:26.5]} 1/2-1/2

[Event "Early-Titled-Tuesday-Blitz-February-27-2024"]
[Site "Chess.com"]
[Date "2024.02.27"]
[Round "9"]
[White "publicaccountcze"]
[Black "cthake"]
[Result "1-0"]
[WhiteElo "2225"]
[BlackElo "1824"]
[TimeControl "180+1"]
[EndTime "9:45:17 PST"]
[Termination "publicaccountcze won on time"]

1. e4 {[%clk 0:02:54.5]} 1... c5 {[%clk 0:02:59.4]} 2. Nc3 {[%clk 0:02:53.1]}
2... a6 {[%clk 0:02:57.6]} 3. f4 {[%clk 0:02:52.3]} 3... e6 {[%clk 0:02:56.8]}
4. Nf3 {[%clk 0:02:48.7]} 4... b5 {[%clk 0:02:56.8]} 5. d4 {[%clk 0:02:45.1]}
5... b4 {[%clk 0:02:54.8]} 6. Ne2 {[%clk 0:02:44.2]} 6... d6 {[%clk 0:02:47.6]}
7. Be3 {[%clk 0:02:43.5]} 7... c4 {[%clk 0:02:45.7]} 8. c3 {[%clk 0:02:41.7]}
8... a5 {[%clk 0:02:43]} 9. d5 {[%clk 0:02:34.6]} 9... Nf6 {[%clk 0:02:39.8]}
10. dxe6 {[%clk 0:02:30.5]} 10... fxe6 {[%clk 0:02:34.6]} 11. e5 {[%clk
0:02:31]} 11... Nd5 {[%clk 0:02:33.6]} 12. Bd4 {[%clk 0:02:26.8]} 12... Nc6
{[%clk 0:02:18.3]} 13. exd6 {[%clk 0:02:15.3]} 13... Qxd6 {[%clk 0:02:16.7]} 14.
Ne5 {[%clk 0:02:14.5]} 14... Nxd4 {[%clk 0:02:00.6]} 15. Qxd4 {[%clk 0:02:06]}
15... Ba6 {[%clk 0:01:52.7]} 16. Ng3 {[%clk 0:01:53.8]} 16... Be7 {[%clk
0:01:43.3]} 17. Ne4 {[%clk 0:01:52.3]} 17... Qc7 {[%clk 0:01:37.5]} 18. Bxc4
{[%clk 0:01:38.1]} 18... Bxc4 {[%clk 0:01:33.3]} 19. Qxc4 {[%clk 0:01:39]} 19...
Qxc4 {[%clk 0:01:29]} 20. Nxc4 {[%clk 0:01:39.5]} 20... bxc3 {[%clk 0:01:29.2]}
21. bxc3 {[%clk 0:01:33.1]} 21... Nxf4 {[%clk 0:01:27.9]} 22. Ncd6+ {[%clk
0:01:32.8]} 22... Bxd6 {[%clk 0:01:26.8]} 23. Nxd6+ {[%clk 0:01:33.7]} 23... Kd7
{[%clk 0:01:26.7]} 24. O-O-O {[%clk 0:01:31.3]} 24... Nd5 {[%clk 0:01:20.7]} 25.
Nf7 {[%clk 0:01:23.3]} 25... Rhc8 {[%clk 0:01:18.4]} 26. Ne5+ {[%clk 0:01:19]}
26... Kd6 {[%clk 0:01:09.6]} 27. Rhe1 {[%clk 0:01:12.7]} 27... Rxc3+ {[%clk
0:01:08.3]} 28. Kb2 {[%clk 0:01:12.3]} 28... Rb8+ {[%clk 0:01:08.2]} 29. Ka1
{[%clk 0:01:12.5]} 29... Ke7 {[%clk 0:00:54.3]} 30. Rxd5 {[%clk 0:00:50.9]}
30... exd5 {[%clk 0:00:46.5]} 31. Nc6+ {[%clk 0:00:50.1]} 31... Kd6 {[%clk
0:00:44.4]} 32. Nxb8 {[%clk 0:00:51]} 32... Rc2 {[%clk 0:00:43.3]} 33. Rg1
{[%clk 0:00:37]} 33... d4 {[%clk 0:00:41.8]} 34. Kb1 {[%clk 0:00:36.5]} 34... d3
{[%clk 0:00:41.9]} 35. Rd1 {[%clk 0:00:36.3]} 35... Rxg2 {[%clk 0:00:38.1]} 36.
Rxd3+ {[%clk 0:00:36.3]} 36... Kc5 {[%clk 0:00:36.8]} 37. Nd7+ {[%clk
0:00:33.4]} 37... Kc4 {[%clk 0:00:32.2]} 38. Ne5+ {[%clk 0:00:33.4]} 38... Kc5
{[%clk 0:00:20.9]} 39. h3 {[%clk 0:00:15.6]} 39... h5 {[%clk 0:00:19.5]} 40. Rg3
{[%clk 0:00:15.2]} 40... Rh2 {[%clk 0:00:17.6]} 41. Nf3 {[%clk 0:00:13.2]} 41...
Rh1+ {[%clk 0:00:15.3]} 42. Kb2 {[%clk 0:00:13.7]} 42... Rh2+ {[%clk 0:00:15.6]}
43. Nxh2 {[%clk 0:00:13.1]} 1-0

[Event "Early-Titled-Tuesday-Blitz-February-27-2024"]
[Site "Chess.com"]
[Date "2024.02.27"]
[Round "9"]
[White "FredddieCroderg"]
[Black "KorolDimitriy75"]
[Result "0-1"]
[WhiteElo "2288"]
[BlackElo "2416"]
[TimeControl "180+1"]
[EndTime "9:45:18 PST"]
[Termination "KorolDimitriy75 won by checkmate"]

1. e4 {[%clk 0:03:00.9]} 1... c5 {[%clk 0:02:58.6]} 2. Bc4 {[%clk 0:02:59.6]}
2... Nc6 {[%clk 0:02:58]} 3. d3 {[%clk 0:02:57.7]} 3... g6 {[%clk 0:02:57.6]} 4.
Qf3 {[%clk 0:02:57.5]} 4... Ne5 {[%clk 0:02:55.9]} 5. Qg3 {[%clk 0:02:57.1]}
5... Nxc4 {[%clk 0:02:50.2]} 6. dxc4 {[%clk 0:02:57]} 6... Bg7 {[%clk
0:02:50.4]} 7. Nc3 {[%clk 0:02:56.3]} 7... d6 {[%clk 0:02:45.9]} 8. Bg5 {[%clk
0:02:50.7]} 8... Be6 {[%clk 0:02:33.8]} 9. b3 {[%clk 0:02:42.3]} 9... Nf6 {[%clk
0:02:05.8]} 10. O-O-O {[%clk 0:02:38.9]} 10... Qa5 {[%clk 0:02:03]} 11. Bd2
{[%clk 0:02:34.2]} 11... Qa3+ {[%clk 0:02:02.8]} 12. Kb1 {[%clk 0:02:30.3]}
12... Nxe4 {[%clk 0:01:55]} 13. Qe3 {[%clk 0:02:27.5]} 13... Nxd2+ {[%clk
0:01:33.2]} 14. Rxd2 {[%clk 0:02:18.2]} 14... Bxc4 {[%clk 0:01:09.8]} 15. Nf3
{[%clk 0:02:09.6]} 15... O-O {[%clk 0:01:06.6]} 16. h4 {[%clk 0:02:01.1]} 16...
a5 {[%clk 0:00:52]} 17. h5 {[%clk 0:02:00.8]} 17... a4 {[%clk 0:00:52.2]} 18.
hxg6 {[%clk 0:01:45.8]} 18... hxg6 {[%clk 0:00:35.2]} 19. Ng5 {[%clk 0:01:35.5]}
19... axb3 {[%clk 0:00:26.1]} 20. cxb3 {[%clk 0:01:30.7]} 20... Bxb3 {[%clk
0:00:19.8]} 21. Qh3 {[%clk 0:01:20.1]} 21... Rfd8 {[%clk 0:00:13.4]} 22. Rb2
{[%clk 0:00:27.6]} 22... Bc4 {[%clk 0:00:12.2]} 23. Nge4 {[%clk 0:00:22.3]}
23... d5 {[%clk 0:00:10.1]} 24. Ng5 {[%clk 0:00:17.4]} 24... Qxc3 {[%clk
0:00:08.5]} 25. Qxc3 {[%clk 0:00:14.4]} 25... Bxc3 {[%clk 0:00:09.4]} 26. Rxb7
{[%clk 0:00:10.2]} 26... Rdb8 {[%clk 0:00:09.4]} 27. Rxb8+ {[%clk 0:00:07.3]}
27... Rxb8+ {[%clk 0:00:10.3]} 28. Kc2 {[%clk 0:00:07.1]} 28... d4 {[%clk
0:00:10.8]} 29. Rb1 {[%clk 0:00:02.4]} 29... Bd3+ {[%clk 0:00:10.4]} 30. Kxd3
{[%clk 0:00:03.3]} 30... Rxb1 {[%clk 0:00:10.6]} 31. Kc4 {[%clk 0:00:03.9]}
31... Rb2 {[%clk 0:00:10.6]} 32. Kxc5 {[%clk 0:00:04.8]} 32... Rxa2 {[%clk
0:00:10.6]} 33. Kc6 {[%clk 0:00:05.7]} 33... Rxf2 {[%clk 0:00:10.7]} 34. Kd7
{[%clk 0:00:06.6]} 34... Rxg2 {[%clk 0:00:10.9]} 35. Ke8 {[%clk 0:00:07.5]}
35... Rxg5 {[%clk 0:00:11]} 36. Kxe7 {[%clk 0:00:06.3]} 36... Rf5 {[%clk
0:00:11.1]} 37. Ke8 {[%clk 0:00:05.3]} 37... d3 {[%clk 0:00:10.5]} 38. Kd8
{[%clk 0:00:06.2]} 38... d2 {[%clk 0:00:10.7]} 39. Kc8 {[%clk 0:00:07.1]} 39...
d1=Q {[%clk 0:00:10.9]} 40. Kb8 {[%clk 0:00:08]} 40... Be1 {[%clk 0:00:10.3]}
41. Ka7 {[%clk 0:00:08.9]} 41... Rf2 {[%clk 0:00:10]} 42. Kb6 {[%clk 0:00:09.8]}
42... Rc2 {[%clk 0:00:09.5]} 43. Ka6 {[%clk 0:00:04.5]} 43... Qb1 {[%clk
0:00:09.2]} 44. Ka7 {[%clk 0:00:03.6]} 44... Ra2# {[%clk 0:00:10.1]} 0-1

[Event "Early-Titled-Tuesday-Blitz-February-27-2024"]
[Site "Chess.com"]
[Date "2024.02.27"]
[Round "9"]
[White "kidagent"]
[Black "GatoRojo150"]
[Result "1-0"]
[WhiteElo "2370"]
[BlackElo "2564"]
[TimeControl "180+1"]
[EndTime "9:45:19 PST"]
[Termination "kidagent won by checkmate"]

1. c4 {[%clk 0:03:00.9]} 1... e6 {[%clk 0:02:58.8]} 2. g3 {[%clk 0:03:00.6]}
2... d5 {[%clk 0:02:58.5]} 3. Bg2 {[%clk 0:03:00.6]} 3... c5 {[%clk 0:02:50.5]}
4. cxd5 {[%clk 0:02:58.3]} 4... exd5 {[%clk 0:02:51.4]} 5. Nf3 {[%clk
0:02:58.1]} 5... Nc6 {[%clk 0:02:50]} 6. d4 {[%clk 0:02:55.6]} 6... Nf6 {[%clk
0:02:34.7]} 7. O-O {[%clk 0:02:54.4]} 7... c4 {[%clk 0:02:20.1]} 8. Nc3 {[%clk
0:02:53.5]} 8... Be7 {[%clk 0:02:06.4]} 9. Bg5 {[%clk 0:02:51]} 9... Be6 {[%clk
0:02:01.1]} 10. Rc1 {[%clk 0:02:44.6]} 10... O-O {[%clk 0:01:53.7]} 11. b3
{[%clk 0:02:43.4]} 11... Ba3 {[%clk 0:01:48.2]} 12. bxc4 {[%clk 0:02:27.3]}
12... Bxc1 {[%clk 0:01:46.4]} 13. Qxc1 {[%clk 0:02:25]} 13... dxc4 {[%clk
0:01:40.4]} 14. d5 {[%clk 0:02:24.3]} 14... Bxd5 {[%clk 0:01:21.3]} 15. Bxf6
{[%clk 0:02:17.4]} 15... Qxf6 {[%clk 0:01:09.6]} 16. Nxd5 {[%clk 0:02:16.4]}
16... Qd6 {[%clk 0:00:59]} 17. Qxc4 {[%clk 0:02:08.7]} 17... Na5 {[%clk
0:00:56.2]} 18. Qd3 {[%clk 0:02:06.2]} 18... Rad8 {[%clk 0:00:55.2]} 19. Rd1
{[%clk 0:02:02.1]} 19... Qc5 {[%clk 0:00:48.6]} 20. Ng5 {[%clk 0:01:53.5]} 20...
g6 {[%clk 0:00:38.8]} 21. Ne4 {[%clk 0:01:52]} 21... Qc4 {[%clk 0:00:32.6]} 22.
Ndf6+ {[%clk 0:01:11.8]} 22... Kg7 {[%clk 0:00:31.9]} 23. Qxd8 {[%clk
0:01:07.4]} 23... Rxd8 {[%clk 0:00:25.4]} 24. Rxd8 {[%clk 0:01:07.6]} 24... Qxe2
{[%clk 0:00:17.3]} 25. h4 {[%clk 0:00:56.6]} 25... Qe1+ {[%clk 0:00:11.7]} 26.
Kh2 {[%clk 0:00:55.5]} 26... h5 {[%clk 0:00:08.9]} 27. Rg8+ {[%clk 0:00:52.8]}
27... Kh6 {[%clk 0:00:09.2]} 28. Ng5 {[%clk 0:00:49.9]} 28... Qe7 {[%clk
0:00:06.9]} 29. Nfe4 {[%clk 0:00:36.2]} 29... f6 {[%clk 0:00:05.8]} 30. Rh8+
{[%clk 0:00:35.9]} 30... Kg7 {[%clk 0:00:06]} 31. Rh7+ {[%clk 0:00:36.1]} 31...
Kf8 {[%clk 0:00:06.5]} 32. Rxe7 {[%clk 0:00:36]} 32... Kxe7 {[%clk 0:00:07.4]}
33. Nf3 {[%clk 0:00:34.9]} 33... f5 {[%clk 0:00:06.9]} 34. Nc3 {[%clk
0:00:34.3]} 34... Nc4 {[%clk 0:00:07.2]} 35. Nd4 {[%clk 0:00:33.7]} 35... a6
{[%clk 0:00:07.1]} 36. Bxb7 {[%clk 0:00:32.5]} 36... a5 {[%clk 0:00:07.4]} 37.
Bd5 {[%clk 0:00:29.8]} 37... Nd2 {[%clk 0:00:07.1]} 38. Nc6+ {[%clk 0:00:29.7]}
38... Kd6 {[%clk 0:00:06.9]} 39. Nxa5 {[%clk 0:00:30.1]} 39... Kc5 {[%clk
0:00:06.4]} 40. Nb3+ {[%clk 0:00:29.2]} 40... Nxb3 {[%clk 0:00:06.1]} 41. Bxb3
{[%clk 0:00:28.5]} 41... Kb4 {[%clk 0:00:06.4]} 42. Nd5+ {[%clk 0:00:28.7]}
42... Ka3 {[%clk 0:00:06.3]} 43. Ne7 {[%clk 0:00:28.8]} 43... g5 {[%clk
0:00:06.3]} 44. hxg5 {[%clk 0:00:28.1]} 44... f4 {[%clk 0:00:06.9]} 45. gxf4
{[%clk 0:00:28]} 45... h4 {[%clk 0:00:07.1]} 46. g6 {[%clk 0:00:28.4]} 46... h3
{[%clk 0:00:08]} 47. g7 {[%clk 0:00:28.7]} 47... Kb2 {[%clk 0:00:08.9]} 48. g8=Q
{[%clk 0:00:28.6]} 48... Kc1 {[%clk 0:00:09.3]} 49. Qd5 {[%clk 0:00:26.3]} 49...
Kb2 {[%clk 0:00:09.3]} 50. Qd3 {[%clk 0:00:25.8]} 50... Ka1 {[%clk 0:00:08.9]}
51. Qd2 {[%clk 0:00:24.3]} 51... Kb1 {[%clk 0:00:08.7]} 52. a4 {[%clk
0:00:21.9]} 52... Ka1 {[%clk 0:00:08.6]} 53. Qa2# {[%clk 0:00:22]} 1-0

[Event "Early-Titled-Tuesday-Blitz-February-27-2024"]
[Site "Chess.com"]
[Date "2024.02.27"]
[Round "9"]
[White "sorch29"]
[Black "Austen48"]
[Result "1-0"]
[WhiteElo "2401"]
[BlackElo "2252"]
[TimeControl "180+1"]
[EndTime "9:45:21 PST"]
[Termination "sorch29 won by resignation"]

1. d4 {[%clk 0:03:00.9]} 1... Nf6 {[%clk 0:02:59.1]} 2. c4 {[%clk 0:02:57]} 2...
e6 {[%clk 0:02:59.1]} 3. Nc3 {[%clk 0:02:56.4]} 3... Bb4 {[%clk 0:02:58.4]} 4.
e3 {[%clk 0:02:56.8]} 4... O-O {[%clk 0:02:57.3]} 5. Bd3 {[%clk 0:02:57.5]} 5...
d5 {[%clk 0:02:56.9]} 6. Ne2 {[%clk 0:02:58.2]} 6... c5 {[%clk 0:02:56.9]} 7.
cxd5 {[%clk 0:02:56.6]} 7... exd5 {[%clk 0:02:54.6]} 8. a3 {[%clk 0:02:49.6]}
8... Bxc3+ {[%clk 0:02:49.6]} 9. Nxc3 {[%clk 0:02:42.2]} 9... cxd4 {[%clk
0:02:46.1]} 10. exd4 {[%clk 0:02:42.3]} 10... Re8+ {[%clk 0:02:44.5]} 11. Ne2
{[%clk 0:02:00]} 11... Nc6 {[%clk 0:02:31.6]} 12. O-O {[%clk 0:01:49.8]} 12...
h6 {[%clk 0:02:27]} 13. h3 {[%clk 0:01:47.1]} 13... Qb6 {[%clk 0:02:21.1]} 14.
b4 {[%clk 0:01:39.1]} 14... Ne4 {[%clk 0:02:09.5]} 15. Be3 {[%clk 0:01:33.8]}
15... Bf5 {[%clk 0:02:03.5]} 16. Qb3 {[%clk 0:01:03.3]} 16... Rad8 {[%clk
0:01:58.3]} 17. Rfd1 {[%clk 0:00:57]} 17... Ne7 {[%clk 0:01:38.5]} 18. a4 {[%clk
0:00:48.4]} 18... Qf6 {[%clk 0:01:35.3]} 19. Nf4 {[%clk 0:00:23.3]} 19... g5
{[%clk 0:01:25.4]} 20. Ne2 {[%clk 0:00:18.2]} 20... Ng6 {[%clk 0:01:23.5]} 21.
Rac1 {[%clk 0:00:10.8]} 21... Nh4 {[%clk 0:01:22.4]} 22. Kh2 {[%clk 0:00:07.4]}
22... Qd6+ {[%clk 0:01:15.4]} 23. Kh1 {[%clk 0:00:04.9]} 23... Qe6 {[%clk
0:01:12.1]} 24. Kh2 {[%clk 0:00:03.4]} 24... Rd7 {[%clk 0:01:02.8]} 25. Re1
{[%clk 0:00:03.6]} 25... Qd6+ {[%clk 0:01:01.2]} 26. Kh1 {[%clk 0:00:02.2]}
26... g4 {[%clk 0:00:59]} 27. Nf4 {[%clk 0:00:01.5]} 27... gxh3 {[%clk 0:00:55]}
28. gxh3 {[%clk 0:00:01.7]} 28... Kh8 {[%clk 0:00:53.3]} 29. Be2 {[%clk
0:00:01.1]} 29... Rg8 {[%clk 0:00:52.1]} 30. Rg1 {[%clk 0:00:01.8]} 30... Rdd8
{[%clk 0:00:50.7]} 31. Rcf1 {[%clk 0:00:02]} 31... Qd7 {[%clk 0:00:38.3]} 32.
Rxg8+ {[%clk 0:00:01.8]} 32... Rxg8 {[%clk 0:00:37.3]} 33. Rg1 {[%clk
0:00:02.6]} 33... Bxh3 {[%clk 0:00:35.9]} 34. Rxg8+ {[%clk 0:00:02]} 34... Kxg8
{[%clk 0:00:36.1]} 35. Qd1 {[%clk 0:00:02.4]} 35... Bg2+ {[%clk 0:00:35.4]} 36.
Kh2 {[%clk 0:00:02.8]} 36... Qf5 {[%clk 0:00:33.2]} 37. Qg1 {[%clk 0:00:03.3]}
37... Qg5 {[%clk 0:00:30.1]} 38. Nxg2 {[%clk 0:00:03.4]} 38... Nxg2 {[%clk
0:00:16.9]} 39. Qxg2 {[%clk 0:00:03.6]} 39... Qxg2+ {[%clk 0:00:16.1]} 40. Kxg2
{[%clk 0:00:04.5]} 40... Nc3 {[%clk 0:00:16.1]} 41. Bb5 {[%clk 0:00:04.6]} 41...
a6 {[%clk 0:00:15.4]} 42. Bd7 {[%clk 0:00:05]} 42... Kf8 {[%clk 0:00:15.7]} 43.
a5 {[%clk 0:00:05.4]} 43... Ke7 {[%clk 0:00:15.7]} 44. Bc8 {[%clk 0:00:06.2]}
44... Na2 {[%clk 0:00:12.1]} 45. Bd2 {[%clk 0:00:06.4]} 1-0